[Event "7th Sharjah Masters 2024"]
[Site "Sharjah"]
[Date "2024.05.18"]
[Round "5.31"]
[White "Sjugirov, Sanan"]
[Black "Assaubayeva, Bibisara"]
[Result "0-1"]
[ECO "E66"]
[WhiteElo "2692"]
[BlackElo "2481"]
[Annotator "TA"]
[PlyCount "86"]
[EventDate "2024.05.13"]
[EventType "swiss"]
[EventCountry "UAE"]
[SourceTitle "playchess.com"]
[Source "ChessBase"]
[SourceQuality "1"]
[TimeControl "5400+30"]

{[%evp 19,86,0,24,23,37,37,29,25,67,63,73,69,44,0,-10,-2,-25,-33,-20,-64,0,0,0,0,0,0,0,0,0,0,0,0,0,-96,-98,-95,-100,-97,-100,-146,-143,-127,-121,-136,-110,-137,-133,-291,-331,-312,-308,-322,-329,-273,-295,-521,-506,-554,-523,-560,-538,-540,-420,-495,-491,-494,-495,-989,-959]} 1. c4 {[%emt 1:31:00]} Nf6 {[%emt 1:31:00]} 2. g3 {[%emt 0:00:30]} g6 {[%emt 0:00:30]} 3. Bg2 {[%emt 0:00:30]} Bg7 {[%emt 0:00:30]} 4. d4 {[%emt 0:00:30][%cal Bd2d4,Bd4d5][%mdl 32]} O-O {[%emt 0:00:30]} 5. Nc3 {[%emt 0:00:30]} d6 {[%emt 0:00:30]} 6. Nf3 {[%emt 0:00:30]} c5 {[%emt 0:00:30]} 7. O-O {[%emt 0:00:30]} Nc6 {[%emt 0:00:30]} 8. d5 {[%emt 0:00:30]} Na5 {[%emt 0:00:30]} 9. Nd2 {[%emt 0:00:30]} e6 {[%emt 0:00:30]} 10. Qc2 {[%emt 0:00:30]} Rb8 {[%emt 0:00:30]} 11. b3 {[%emt 0:00:30]} exd5 {[%emt 0:00:30]} 12. cxd5 {[%emt 0:00:30]} b5 {[%emt 0:00:30][%cal Bb7b5,Bb5b4][%mdl 32]} 13. Bb2 {[%emt 0:00:30] White has an edge.} b4 {[%emt 0:00:30]} 14. Nd1 {[%emt 0:00:30]} Ba6 {[%emt 0:00:30]} 15. Re1 {[%emt 0:00:30]} Re8 {[%emt 0:00:30]} 16. a3 {[%emt 0:00:30]} (16. Ne3 $14) 16... Bxe2 $11 {[%emt 0:00:30][%cal Oc5c4]} 17. Ne3 {[%emt 0:00:30]} Bb5 {[%emt 0:00:30]} 18. axb4 {[%emt 0:00:30]} cxb4 {[%emt 0:00:30]} 19. Bd4 {[%emt 0:00:30]} (19. Qb1 {simplifies} a6 20. Nc2 Rxe1+ 21. Qxe1 Bd3 22. Nd4) 19... Nb7 {[%emt 0:00:30]} (19... Nxd5 $15 20. Bxg7 Nxe3 21. Rxe3 Rxe3 (21... Kxg7 22. Qb2+ f6 23. Rxe8 $11) 22. fxe3 Kxg7) 20. Rxa7 {[%emt 0:00:30]} Nc5 {[%emt 0:00:30]} 21. Rea1 {[%emt 0:00:30]} Nfd7 {[%emt 0:00:30]} 22. Nf3 {[%emt 0:00:30]} Bd3 {[%emt 0:00:30]} 23. Qb2 {[%emt 0:00:30]} Bxd4 {[%emt 0:00:30]} 24. Nxd4 {[%emt 0:00:30]} Qf6 {[%emt 0:00:30][%cal Oc5b3]} 25. R1a2 {[%emt 0:00:30]} Bb1 {[%emt 0:00:30]} 26. Qxb1 {[%emt 0:00:30]} (26. Ne6 $1 $11 {remains equal.} Qxb2 (26... Bxa2 27. Ng4 $11) 27. Rxb2) 26... Qxd4 $17 {[%emt 0:00:30]} 27. Qb2 {[%emt 0:00:30] [#]} Qc3 $36 {[%emt 0:00:30][%mdl 2048] Black is really pushing. Black is more active.} 28. Bf1 {[%emt 0:00:30]} Ne5 {[%emt 0:00:30][%cal Bd7e5,Be5f3,Bf3h2][%mdl 32]} (28... Qxb3 $2 {loses.} 29. Qxb3 Nxb3 30. Rxd7 $18) 29. Rc7 {[%emt 0:00:30]} (29. Bc4 $142) 29... Qxb3 {[%emt 0:00:30]} 30. Qxb3 {[%emt 0:00:30]} Nxb3 {[%emt 0:00:30]} 31. f4 {[%emt 0:00:30]} Nf3+ {[%emt 0:00:30]} 32. Kf2 {[%emt 0:00:30]} Nxh2 {[%emt 0:00:30] A dynamic duo of knights.} 33. Bc4 {[%emt 0:00:30] Now White is beyond hope.} (33. Bh3 $17) 33... Nc5 $19 {[%emt 0:00:30]} 34. Raa7 {[%emt 0:00:30] [#]} Ra8 $1 {[%emt 0:00:30]} 35. Rxf7 {[%emt 0:00:30] Hoping for Rg7+.} Rxa7 {[%emt 0:00:30]} 36. Rxa7 {[%emt 0:00:30]} b3 {[%emt 0:00:30] ...b2 would now be deadly.} 37. Nd1 {[%emt 0:00:30]} (37. Ra3 b2 38. Ba2 Ne4+ 39. Ke2 (39. Kg2 $2 Nd2 $19)) 37... Ng4+ {[%emt 0:00:30]} 38. Kf3 {[%emt 0:00:30]} h5 {[%emt 0:00:30]} 39. Ra3 {[%emt 0:00:30]} Re1 {[%emt 0:00:30]} 40. Be2 {[%emt 0:00:30]} Kg7 {[%emt 0:00:30][%cal Oc5e4] aiming for ...Ne4!} 41. Ra7+ {[%emt 0:00:30]} Kf6 {[%emt 0:00:30] Black is clearly winning.} 42. Ra8 {[%emt 0:00:30]} Ne4 {[%emt 0:00:30]} 43. Re8 {[%emt 0:00:30]} (43. Kxe4 $142 Rxe2+ 44. Kd3) 43... Nh2+ {[%emt 0:00:30] Weighted Error Value: White=0.39/Black=0.10 (very precise) .  Mistake:       	White=6     	Black=1      Inaccurate:     	White=1     	Black=1      OK:         	White=12    	Black=18     Best:        	White=3     	Black=4      Strong:       	---       	Black=1} 0-1

[Event "7th Sharjah Masters 2024"]
[Site "Sharjah"]
[Date "2024.05.18"]
[Round "5.32"]
[White "Kacharava, Nikolozi"]
[Black "Ivanchuk, Vasyl"]
[Result "0-1"]
[ECO "B62"]
[WhiteElo "2527"]
[BlackElo "2609"]
[Annotator "TA"]
[PlyCount "120"]
[EventDate "2024.05.13"]
[EventType "swiss"]
[EventCountry "UAE"]
[SourceTitle "playchess.com"]
[Source "ChessBase"]
[SourceQuality "1"]
[TimeControl "5400+30"]

{[%evp 39,120,-27,-26,-15,-10,-7,-7,-85,-54,-37,-39,-46,-39,-84,-12,-164,-157,-185,-172,-164,-177,-178,-185,-176,-178,-183,-143,-154,-158,-149,-144,-151,-150,-186,-184,-225,-215,-378,-376,-353,-355,-406,-451,-418,-435,-403,-327,-352,-352,-351,-313,-456,-460,-479,-479,-499,-489,-556,-515,-691,-605,-694,-669,-584,-372,-687,-655,-719,-904,-912,-879,-885,-754,-29976,-29977,-29978,-29979,-29978,-29979,-29980,-29981,-29981,-29981]} 1. e4 {[%emt 0:00:11]} c5 {[%emt 0:00:04]} 2. Nf3 {[%emt 0:00:24]} d6 {[%emt 0:00:04]} 3. d4 {[%emt 0:00:43]} cxd4 {[%emt 0:00:05]} 4. Nxd4 {[%emt 0:01:02]} Nf6 {[%emt 0:00:08]} 5. Nc3 {[%emt 0:00:11]} Nc6 {[%emt 0:00:03]} 6. Bg5 {[%emt 0:00:54]} e6 {[%emt 0:00:05]} 7. Qd3 {[%emt 0:01:26]} Bd7 {[%emt 0:03:48]} 8. O-O-O {[%emt 0:01:01]} a6 {[%emt 0:00:05]} 9. f4 {[%emt 0:01:06]} h6 {[%emt 0:00:05] B62: Sicilian: Richter-Rauzer: 6...e6: Unusual White 7th moves.} 10. Bh4 {[%emt 0:01:12]} g5 {[%emt 0:00:04]} 11. fxg5 {[%emt 0:11:32]} Ng4 {[%emt 0:01:15]} 12. Nxc6 {[%emt 0:11:25]} Bxc6 {[%emt 0:00:09]} 13. Qf3 {[%emt 0:02:21]} Ne5 {[%emt 0:17:31]} 14. Qf6 {[%emt 0:05:24]} Ng6 {[%emt 0:07:23]} 15. Bg3 {[%emt 0:03:37]} hxg5 {[%emt 0:00:43]} 16. Qd4 {[%emt 0:00:49]} Qa5 {[%emt 0:14:21]} 17. Be2 $146 {[%emt 0:13:40]} ({Predecessor:} 17. a4 Qc5 18. Bxd6 Qxd4 19. Rxd4 Bg7 20. Rc4 Rd8 21. Bc7 Rd4 22. Ba5 Rxc4 23. Bxc4 {0-1 Naiditsch,A (2700)-Vachier Lagrave,M (2684) FRA-chT Top 16 GpA 2009 (6)}) 17... Rh7 {[%emt 0:29:59]} 18. Kb1 {[%emt 0:22:04]} O-O-O {[%emt 0:05:45]} 19. Rhf1 {[%emt 0:08:06]} Nf4 {[%emt 0:10:52]} 20. Bxf4 {[%emt 0:01:20]} gxf4 {[%emt 0:00:01]} (20... Bg7 {seems wilder.} 21. Qc4 gxf4 22. Rxf4 Be5) 21. Qf6 {[%emt 0:02:12]} (21. Rxf4 $2 e5 22. Rf5 (22. Bg4+ $2 Kb8 $19) 22... exd4 $19) 21... Rd7 {[%emt 0:03:24]} 22. Qxf4 {[%emt 0:03:06]} (22. Rxf4 $2 {loses.} Bg7 $19 (22... Rxh2 23. Rg4 $11) (22... Rxh2 23. Rg4 $11)) 22... Bg7 {[%emt 0:00:03]} 23. Rd3 {[%emt 0:05:02]} (23. Rxd6 $2 {perishes.} Be5 24. Rxc6+ bxc6 $19) (23. Qg3 $11) 23... Be5 $17 {[%emt 0:00:19]} 24. Qg4 $1 {[%emt 0:00:15]} Rg7 {[%emt 0:03:23]} 25. Qh3 {[%emt 0:01:18]} Kb8 {[%emt 0:01:03]} 26. a3 {[%emt 0:01:05]} Rc7 {[%emt 0:01:32]} (26... Qb6 $17 {[%cal Oc6e4] Threatens to win with ...Bxe4!} 27. Bf3 Rc7) 27. Re3 $2 {[%emt 0:01:19]} (27. Rxd6 $11 {and White stays safe.} Qc5 (27... Bxc3 28. bxc3 Rg8 29. Rfd1 $11) 28. Rd8+ Ka7 29. Qf3) 27... Qc5 {[%emt 0:00:47]} 28. Rc1 {[%emt 0:00:59]} Rxg2 {[%emt 0:00:38]} 29. Qxg2 {[%emt 0:00:37]} Qxe3 {[%emt 0:00:01]} 30. Qg1 {[%emt 0:00:36]} Qxg1 {[%emt 0:00:46]} 31. Rxg1 {[%emt 0:00:01]} Bxh2 {[%emt 0:00:01]} 32. Rg8+ {[%emt 0:00:25]} Ka7 {[%emt 0:01:20]} 33. Bd3 {[%emt 0:00:08]} Be5 {[%emt 0:00:23]} 34. Nd1 {[%emt 0:00:17]} Re7 {[%emt 0:00:24]} 35. Ne3 {[%emt 0:00:45]} Re8 {[%emt 0:00:04]} 36. Rg4 {[%emt 0:00:36]} b5 {[%emt 0:00:19]} 37. c3 {[%emt 0:01:10]} Rh8 {[%emt 0:00:01]} 38. Rg1 $2 {[%emt 0:00:34]} (38. Nf1) 38... Rh3 $19 {[%emt 0:00:23]} 39. Re1 {[%emt 0:00:11]} Bf4 {[%emt 0:01:38]} 40. Nc2 {[%emt 0:00:17]} Rxd3 {[%emt 0:00:35]} 41. Nb4 {[%emt 0:00:04]} Bxe4 {[%emt 0:00:27]} 42. Rxe4 {[%emt 0:00:06]} Rf3 {[%emt 0:00:12]} 43. a4 {[%emt 0:00:31]} d5 {[%emt 0:00:51]} 44. Rd4 {[%emt 0:00:19]} Bd6 {[%emt 0:00:38]} 45. Nc2 {[%emt 0:00:44]} (45. axb5 $142 axb5 46. Nc2) 45... bxa4 $19 {[%emt 0:00:38]} 46. Rxa4 {[%emt 0:00:10]} Rf4 {[%emt 0:00:22]} 47. b4 {[%emt 0:01:28]} Be5 {[%emt 0:00:33]} 48. Ra3 {[%emt 0:00:23]} Kb6 {[%emt 0:00:31]} 49. Ne3 {[%emt 0:00:02]} Re4 {[%emt 0:00:21]} 50. Nd1 {[%emt 0:00:24]} Re2 {[%emt 0:00:29]} 51. Nb2 {[%emt 0:00:11]} Bd6 {[%emt 0:00:24]} 52. Ra5 $2 {[%emt 0:02:00]} (52. c4 Bxb4 53. Rb3) 52... f5 $19 {[%emt 0:00:37]} 53. Na4+ {[%emt 0:00:07]} Kb7 {[%emt 0:00:01]} 54. b5 {[%emt 0:00:16]} axb5 {[%emt 0:00:35]} 55. Rxb5+ {[%emt 0:00:04]} Kc7 {[%emt 0:00:16]} 56. Rb2 {[%emt 0:00:19]} Rxb2+ {[%emt 0:00:37]} 57. Nxb2 {[%emt 0:00:04]} e5 {[%emt 0:00:39]} 58. Kc2 {[%emt 0:00:08]} e4 {[%emt 0:00:08]} 59. Nd1 {[%emt 0:00:24]} Bc5 {[%emt 0:00:05]} 60. Kd2 {[%emt 0:00:11]} Kd6 {[%emt 0:00:06]} 0-1

[Event "7th Sharjah Masters 2024"]
[Site "Sharjah"]
[Date "2024.05.18"]
[Round "5.33"]
[White "Nikitenko, Mihail"]
[Black "Jumabayev, Rinat"]
[Result "1/2-1/2"]
[ECO "C55"]
[WhiteElo "2529"]
[BlackElo "2597"]
[Annotator "TA"]
[PlyCount "41"]
[EventDate "2024.05.13"]
[EventType "swiss"]
[EventCountry "UAE"]
[SourceTitle "playchess.com"]
[Source "ChessBase"]
[SourceQuality "1"]
[TimeControl "5400+30"]

{[%evp 9,41,38,47,34,31,28,27,7,8,16,0,4,16,0,0,0,0,0,0,0,0,0,0,0,0,0,0,0,0,0,0,-17,-17,-25]} 1. e4 {[%emt 0:00:04]} e5 {[%emt 0:00:29]} 2. Nf3 {[%emt 0:00:07]} Nc6 {[%emt 0:00:03]} 3. Bc4 {[%emt 0:00:07]} Nf6 {[%emt 0:00:12]} 4. d3 {[%emt 0:00:06]} a6 {[%emt 0:00:07]} 5. Ng5 {[%emt 0:06:21]} d5 {[%emt 0:06:09]} 6. exd5 {[%emt 0:00:06]} Na5 {[%emt 0:08:31][%cal Ob7b5]} 7. Qe2 {[%emt 0:05:56]} Bd6 {[%emt 0:51:28]} 8. Nc3 {[%emt 0:14:41] White has an edge.} b5 {[%emt 0:02:44] The position is equal.} 9. Bb3 {[%emt 0:00:48]} Nxb3 {[%emt 0:00:40]} 10. axb3 {[%emt 0:00:04]} Bb7 {[%emt 0:00:15]} 11. d4 {[%emt 0:04:13]} Qe7 {[%emt 0:06:09]} 12. dxe5 {[%emt 0:00:23]} Qxe5 {[%emt 0:04:45]} 13. Bf4 {[%emt 0:10:23]} Qxe2+ {[%emt 0:00:18]} 14. Nxe2 {[%emt 0:00:04]} Bxf4 {[%emt 0:00:54]} 15. Nxf4 {[%emt 0:00:12] A dynamic duo of knights.} Nxd5 {[%emt 0:07:24]} 16. Nd3 {[%emt 0:00:51]} h6 {[%emt 0:05:23]} 17. Nf3 {[%emt 0:01:39]} O-O-O {[%emt 0:00:11]} 18. O-O {[%emt 0:00:09]} Rhe8 {[%emt 0:00:14]} 19. Rfe1 {[%emt 0:00:40]} Rxe1+ {[%emt 0:01:49]} 20. Rxe1 {[%emt 0:01:22]} a5 {[%emt 0:01:10]} 21. Nfe5 {[%emt 0:07:13] Weighted Error Value: White=0.04 (flawless) /Black=0.00 (flawless) .  OK:         	White=7     	Black=11     Best:        	---       	Black=1} 1/2-1/2

[Event "7th Sharjah Masters 2024"]
[Site "Sharjah"]
[Date "2024.05.18"]
[Round "5.34"]
[White "Madaminov, Mukhiddin"]
[Black "Peralta, Fernando"]
[Result "*"]
[ECO "C42"]
[WhiteElo "2506"]
[BlackElo "2575"]
[Annotator "TA"]
[PlyCount "77"]
[EventDate "2024.05.13"]
[EventType "swiss"]
[EventCountry "UAE"]
[SourceTitle "playchess.com"]
[Source "ChessBase"]
[SourceQuality "1"]
[TimeControl "5400+30"]

{[%evp 13,77,14,20,10,19,9,10,0,0,0,0,15,18,26,22,25,34,35,27,47,46,36,29,27,50,59,50,56,47,29,38,21,37,43,48,41,51,39,68,19,18,0,0,-3,-4,0,0,0,0,0,0,-48,0,-4,0,-41,-28,-38,-38,-29,-34,-38,0,0,0,0]} 1. e4 {[%emt 1:31:00]} e5 {[%emt 1:31:00]} 2. Nf3 {[%emt 0:00:30]} Nf6 {[%emt 0:00:30]} 3. Nxe5 {[%emt 0:00:30]} d6 {[%emt 0:00:30]} 4. Nf3 {[%emt 0:00:30]} Nxe4 {[%emt 0:00:30]} 5. Nc3 {[%emt 0:00:30]} Nxc3 {[%emt 0:00:30]} 6. dxc3 {[%emt 0:00:30]} Be7 {[%emt 0:00:30]} 7. Be3 {[%emt 0:00:30]} O-O {[%emt 0:00:30]} 8. Qd2 {[%emt 0:00:30]} Nd7 {[%emt 0:00:30]} 9. O-O-O {[%emt 0:00:30]} Nf6 {[%emt 0:00:30]} 10. Bd4 {[%emt 0:00:30]} Re8 {[%emt 0:00:30]} 11. Bd3 {[%emt 0:00:30] Repels Ne4} d5 {[%emt 0:00:30]} 12. c4 {[%emt 0:00:30]} c5 {[%emt 0:00:30]} 13. Bxf6 {[%emt 0:00:30]} Bxf6 {[%emt 0:00:30]} 14. cxd5 {[%emt 0:00:30]} Qd6 {[%emt 0:00:30][%cal Og7g6]} 15. Rde1 {[%emt 0:00:30]} Bd7 {[%emt 0:00:30]} 16. Ng5 {[%emt 0:00:30]} Bxg5 {[%emt 0:00:30]} 17. Qxg5 {[%emt 0:00:30]} h6 {[%emt 0:00:30]} 18. Qd2 {[%emt 0:00:30]} Rxe1+ {[%emt 0:00:30]} (18... Qxd5 $2 {loses.} 19. Rxe8+ (19. Bh7+ Kxh7 20. Qxd5 Be6 $18) 19... Rxe8 20. Bh7+ Kxh7 21. Qxd5 $18) 19. Rxe1 {[%emt 0:00:30]} Qxh2 {[%emt 0:00:30]} 20. g3 {[%emt 0:00:30]} Qh5 {[%emt 0:00:30]} 21. c4 {[%emt 0:00:30]} Qf3 {[%emt 0:00:30]} 22. Re5 {[%emt 0:00:30]} (22. Re7 $5 Rd8 $8 23. Re3 $11) 22... Qf6 {[%emt 0:00:30]} 23. Qe3 {[%emt 0:00:30]} Qd6 {[%emt 0:00:30]} 24. Bf5 {[%emt 0:00:30]} Bxf5 {[%emt 0:00:30]} 25. Rxf5 $14 {[%emt 0:00:30][%mdl 4096] Endgame. KQR-KQR} Kf8 {[%emt 0:00:30]} 26. Qe6 {[%emt 0:00:30] White is more active.} (26. Re5 $14) 26... Qe7 $11 {[%emt 0:00:30]} 27. Kd2 {[%emt 0:00:30]} Qc7 {[%emt 0:00:30] [#] And now ...Re8 would win.} 28. b4 {[%emt 0:00:30] d6 is the strong threat.} Kg8 {[%emt 0:00:30]} 29. Qe5 {[%emt 0:00:30]} Qb6 {[%emt 0:00:30]} 30. bxc5 {[%emt 0:00:30]} Qxc5 {[%emt 0:00:30]} 31. Rf4 {[%emt 0:00:30]} b5 {[%emt 0:00:30]} 32. Qd4 {[%emt 0:00:30]} (32. Qe3 $1 $11 Qb4+ 33. Qc3) 32... Qb4+ {[%emt 0:00:30]} 33. Qc3 $132 {[%emt 0:00:30][%mdl 2048] White is not keeping still} Qd6 {[%emt 0:00:30]} 34. Ke2 {[%emt 0:00:30]} (34. Qb3 {simplifies} bxc4 35. Qxc4 g5 36. Rd4) 34... Rd8 {[%emt 0:00:30]} 35. Rd4 $1 {[%emt 0:00:30]} Qc5 {[%emt 0:00:30]} 36. Rg4 {[%emt 0:00:30]} g6 {[%emt 0:00:30] Threatens to win with ...Rxd5.} 37. Qf6 {[%emt 0:00:30]} Re8+ {[%emt 0:00:30]} 38. Kf1 {[%emt 0:00:30]} bxc4 {[%emt 0:00:30]} 39. Rxg6+ $1 {[%emt 0:00:30] Weighted Error Value: White=0.08 (flawless) /Black=0.07 (flawless) .  Mistake:       	White=2     	---        Inaccurate:     	White=1     	Black=3      OK:         	White=15    	Black=17     Best:        	White=2     	Black=3      Strong:       	White=2     	---} *

[Event "7th Sharjah Masters 2024"]
[Site "Sharjah"]
[Date "2024.05.18"]
[Round "5.35"]
[White "Yilmazyerli, Mert"]
[Black "Sanal, Vahap"]
[Result "1/2-1/2"]
[ECO "C67"]
[WhiteElo "2522"]
[BlackElo "2566"]
[Annotator "TA"]
[PlyCount "32"]
[EventDate "2024.05.13"]
[EventType "swiss"]
[EventCountry "UAE"]
[SourceTitle "playchess.com"]
[Source "ChessBase"]
[SourceQuality "1"]
[TimeControl "5400+30"]

{[%evp 20,32,24,20,29,8,18,9,7,0,5,0,4,0,6]} 1. e4 {[%emt 0:00:06]} e5 {[%emt 0:00:07]} 2. Nf3 {[%emt 0:00:13]} Nc6 {[%emt 0:00:08]} 3. Bb5 {[%emt 0:00:10]} Nf6 {[%emt 0:00:08][%cal Bg8f6,Bf6e4,Be4d6,Bd6f5,Bf5h4][%mdl 32]} 4. O-O {[%emt 0:00:17][%cal Bh1f1,Bf1e1,Be1e5][%mdl 32]} Nxe4 {[%emt 0:00:08]} 5. Re1 {[%emt 0:00:19]} Nd6 {[%emt 0:00:07]} 6. Nxe5 {[%emt 0:00:12]} Be7 {[%emt 0:00:11]} 7. Bf1 {[%emt 0:00:11]} Nxe5 {[%emt 0:00:05]} 8. Rxe5 {[%emt 0:00:06]} O-O {[%emt 0:00:34]} 9. d4 {[%emt 0:00:08]} Bf6 {[%emt 0:00:02]} 10. Re1 {[%emt 0:00:06]} Nf5 {[%emt 0:01:05]} 11. c3 {[%emt 0:00:06]} d5 {[%emt 0:00:04]} 12. Bf4 {[%emt 0:00:18]} c6 {[%emt 0:00:20] The position is equal.} 13. Nd2 {[%emt 0:00:20]} Nh4 {[%emt 0:01:18]} 14. Bd3 {[%emt 0:00:08]} Bf5 {[%emt 0:00:07]} 15. Bxf5 {[%emt 0:00:07]} Nxf5 {[%emt 0:00:03]} 16. Nf3 {[%emt 0:00:07]} Re8 {[%emt 0:00:24] A rather calm draw.   Weighted Error Value: White=0.07 (flawless) /Black=0.02 (flawless) .  OK:         	White=1     	Black=2} 1/2-1/2

[Event "7th Sharjah Masters 2024"]
[Site "Sharjah"]
[Date "2024.05.18"]
[Round "5.36"]
[White "Seemann, Jakub"]
[Black "Dudin, Gleb"]
[Result "0-1"]
[ECO "A20"]
[WhiteElo "2475"]
[BlackElo "2554"]
[Annotator "TA"]
[PlyCount "74"]
[EventDate "2024.05.13"]
[EventType "swiss"]
[EventCountry "UAE"]
[SourceTitle "playchess.com"]
[Source "ChessBase"]
[SourceQuality "1"]
[TimeControl "5400+30"]

{[%evp 18,74,-12,-18,-17,-17,0,0,0,-22,0,0,1,-49,-46,-66,0,-54,-48,-108,-20,-51,-44,-49,-38,-31,-43,-41,-33,-31,-29,-38,-29,-139,-145,-279,-273,-286,-118,-113,-121,-362,-326,-333,-242,-351,-332,-1819,-431,-442,-441,-404,-439,-481,-504,-574,-613,-649,-628]} 1. c4 {[%emt 0:00:06]} e5 {[%emt 0:03:10]} 2. g3 {[%emt 0:00:07]} Nf6 {[%emt 0:00:53]} 3. Bg2 {[%emt 0:00:05]} h6 {[%emt 0:00:21]} 4. d3 {[%emt 0:03:20]} d5 {[%emt 0:07:12]} 5. cxd5 {[%emt 0:00:38]} Nxd5 {[%emt 0:00:08]} 6. Nc3 {[%emt 0:04:00] A20: English Opening: 1...e5.} Nf6 {[%emt 0:00:26]} 7. f4 $146 {[%emt 0:16:29]} ({Predecessor:} 7. Qb3 c6 8. Nf3 Nbd7 9. O-O Bc5 10. e3 O-O 11. d4 exd4 12. exd4 Bd6 13. Re1 Nb6 {½-½ Svidler,P (2689)-Anand,V (2754) Amsterdam Levitov Rapid 2023 (1)}) 7... Bc5 {[%emt 0:05:41]} 8. Nf3 {[%emt 0:27:35]} exf4 {[%emt 0:20:38]} 9. d4 {[%emt 0:02:03]} Bb6 $1 {[%emt 0:03:30]} 10. Bxf4 {[%emt 0:04:12]} Nc6 {[%emt 0:02:32]} 11. Qa4 {[%emt 0:07:39]} O-O {[%emt 0:00:52]} 12. O-O-O {[%emt 0:01:46]} Bd7 {[%emt 0:03:10]} 13. Qa3 {[%emt 0:03:33]} a5 {[%emt 0:09:31]} 14. Ne5 {[%emt 0:02:36]} a4 {[%emt 0:04:09]} (14... Bxd4 $2 15. Nxc6 Bxc6 16. Bxc6 $18) 15. Nxc6 {[%emt 0:04:25]} (15. Nxd7 $11 Qxd7 16. d5 (16. e3 g5 $17)) 15... Bxc6 $15 {[%emt 0:03:47]} 16. e4 {[%emt 0:01:22]} Ng4 {[%emt 0:10:23]} (16... Bxd4 $2 17. Nd5 $18 (17. Ne2 Bxb2+ 18. Kxb2 Qb8 $18)) (16... Re8 $15 17. d5 Bd7) 17. Rd2 {[%emt 0:09:27]} (17. d5 Bd7 18. e5 g5 (18... Nf2 $2 19. e6 $18)) ({White should try} 17. Rhe1 $1 $11) 17... g5 $1 $15 {[%emt 0:00:19]} (17... Bxd4 $2 18. Rhd1 $18) 18. h3 {[%emt 0:01:27] [#]} ({Better is} 18. Bf3 $15) 18... gxf4 {[%emt 0:02:38]} (18... Nf6 $1 $17 19. Be3 Re8) 19. hxg4 $11 {[%emt 0:00:05]} Bxd4 {[%emt 0:00:13]} (19... fxg3 $6 20. Ne2 $16) 20. Nd5 {[%emt 0:01:04]} (20. gxf4 $2 Be3 21. Nd5 Bxd2+ 22. Kxd2 Bxd5 23. exd5 Qf6 $19) 20... Bxd5 {[%emt 0:00:08]} 21. Rxd4 {[%emt 0:00:13]} f3 $1 {[%emt 0:00:09]} 22. Bxf3 {[%emt 0:02:47]} Qg5+ {[%emt 0:00:09]} 23. Kb1 {[%emt 0:00:04]} Be6 {[%emt 0:00:53]} 24. Rh5 {[%emt 0:00:08]} Qg7 {[%emt 0:03:12]} 25. Qd3 {[%emt 0:02:27]} (25. Rxa4 $11 {keeps the balance.} Rxa4 26. Qxa4) 25... a3 $1 $17 {[%emt 0:01:03]} (25... Bxg4 26. Bxg4 Qxg4 27. Rxh6 $16) 26. b4 {[%emt 0:00:45] [#]} (26. Bd1 $17) 26... Rad8 $1 $19 {[%emt 0:05:23]} ({Stronger than} 26... Bxg4 27. Bxg4 Qxg4 28. Rxh6 $11) 27. e5 {[%emt 0:00:40]} Qg6 {[%emt 0:00:57]} (27... Rxd4 $19 {has better winning chances.} 28. Qxd4 Qg6+ 29. Be4 Qxg4) 28. Be4 $17 {[%emt 0:02:42]} Rxd4 {[%emt 0:01:05]} ({Much weaker is} 28... Qxg4 $6 29. Rxd8 Qxh5 30. Rxf8+ Kxf8 31. Qd8+ Kg7 32. Qf6+ Kg8 33. Qd8+ Kg7 34. Qf6+ Kg8 35. Qd8+ Kg7 $11) 29. Qxd4 $2 {[%emt 0:01:13]} (29. Bxg6 $17 {only move.} Rxd3 30. Bxd3) 29... Qxg4 $19 {[%emt 0:00:18]} 30. Rh4 {[%emt 0:00:30]} Qg5 {[%emt 0:00:19]} (30... Qxg3 $2 {perishes.} 31. Rh1 $18) 31. Qc3 {[%emt 0:01:57]} (31. Bc2 $142) 31... Rd8 $19 {[%emt 0:00:58]} 32. Rh1 $2 {[%emt 0:00:29]} (32. Bc2) 32... Qd2 {[%emt 0:02:09]} (32... Bf5 $142 33. Bxf5 Qxf5+ 34. Kc1 Rd3) 33. Qxd2 $19 {[%emt 0:00:29]} Rxd2 {[%emt 0:00:06]} 34. Bc2 {[%emt 0:00:08]} Kg7 {[%emt 0:01:45]} 35. Re1 {[%emt 0:00:56]} Rg2 {[%emt 0:00:12]} 36. b5 {[%emt 0:00:17]} Rxg3 {[%emt 0:00:10]} 37. Be4 {[%emt 0:00:02]} b6 {[%emt 0:00:51]} 0-1